bitfinex-derivatives/quotes_ETHF0:USTF0_20240905
["timestamp","ask_amount","ask_price","bid_price","bid_amount"]
[1725555744561,0.42043,2378.6,2378.3,0.3787]
[1725555744757,0.42043,2378.6,2378.3,0.79918]
[1725555745068,0.78042,2378.7,2378.4,0.42046]
[1725555745253,0.42043,2378.6,2378.3,0.79917]
[1725555745764,0.78043,2378.7,2378.4,0.42046]
[1725555745969,0.42043,2378.6,2378.4,0.42046]
[1725555746263,0.78042,2378.7,2378.4,0.42046]
[1725555748461,0.78042,2378.7,2378.4,0.42047]
[1725555748660,0.42043,2378.6,2378.3,0.79917]
[1725555748859,0.42043,2378.6,2378.4,0.42047]
[1725555750357,0.36,2378.7,2378.3,0.3787]
[1725555750562,0.42044,2378.6,2378.4,0.42046]
[1725555751664,0.42044,2378.6,2378.3,0.3787]
[1725555751962,0.36,2378.7,2378.6,0.42043]
[1725555752367,0.36,2378.7,2378.6,4.62443]
[1725555752975,0.78009,2378.9,2378.8,0.4204]
[1725555753160,0.7524,2378.9,2378.8,0.4204]
[1725555753356,0.7524,2378.9,2378.7,0.3718]
[1725555753656,0.42042,2378.7,2378.5,3.2078]
[1725555753862,0.42042,2378.7,2378.6,0.42043]
[1725555754263,0.42042,2378.7,2378.5,3.2078]
[1725555754264,1.80337,2378.9,2378.5,3.62824]
[1725555754471,1.05105,2378.7,2378.4,0.3718]
[1725555754767,1.05109,2378.6,2378.2,3.6283]
[1725555754963,1.05109,2378.6,2378.3,0.42048]
[1725555755267,0.42043,2378.7,2378.5,0.42044]
[1725555755463,0.42043,2378.6,2378.5,0.42044]
[1725555755856,0.42042,2378.7,2378.6,0.42043]
[1725555756062,0.3711,2378.8,2378.5,0.42044]
[1725555756063,0.42043,2378.6,2378.5,0.42044]
[1725555756264,0.42043,2378.6,2378.4,0.42045]
[1725555756660,0.42048,2378.3,2378.2,3.2078]
[1725555756860,0.4205,2378.2,2378.1,0.00631061]
[1725555757059,0.7814,2378.2,2378.1,0.00631061]
[1725555757460,0.7814,2378.2,2378.1,0.42683061]
[1725555757763,0.3609,2378.2,2378.1,0.42683061]
[1725555757971,0.7814,2378.2,2378.1,0.00631061]
[1725555758274,0.3609,2378.2,2378.1,4.63163061]
[1725555758671,0.3609,2378.2,2378.1,0.00631061]
[1725555758976,0.7814,2378.2,2378.1,0.42683061]
[1725555759278,0.3609,2378.2,2378.1,0.42683061]
[1725555759574,0.3609,2378.2,2378.1,4.63163061]
[1725555760274,0.3609,2378.2,2378.1,0.42683061]
[1725555760479,0.3609,2378.2,2378.1,4.63163061]
[1725555760674,0.3609,2378.2,2378.1,0.42683061]
[1725555760874,0.7814,2378.2,2378.1,0.00631061]
[1725555761265,0.3609,2378.2,2378.1,0.42683061]
[1725555762967,0.3561,2378.5,2378.4,0.42047]
[1725555763171,0.7223,2378.5,2378.4,0.42047]
[1725555763470,0.3662,2378.5,2378.4,0.42047]
[1725555763670,0.42042,2378.7,2378.6,0.42043]
[1725555763872,0.42042,2378.7,2378.3,3.2078]
[1725555763873,0.42044,2378.6,2378.5,0.78134]
[1725555764369,0.78663,2378.7,2378.5,0.78134]
[1725555764570,0.42043,2378.6,2378.5,0.78134]
[1725555765274,0.42043,2378.6,2378.5,0.3609]
[1725555765983,0.42043,2378.6,2378.5,0.78135]
[1725555766677,0.42043,2378.6,2378.5,0.3609]
[1725555766878,0.42045,2378.5,2378.4,0.42047]
[1725555767378,0.42047,2378.4,2378.3,0.42048]
[1725555767689,0.42048,2378.4,2378.2,0.3864]
[1725555767890,0.42046,2378.5,2378.2,0.3864]
[1725555768483,0.42045,2378.6,2378.4,0.42046]
[1725555768881,0.42047,2378.4,2378.3,0.42047]
[1725555769181,1.05118,2378.4,2378.1,0.00631061]
[1725555769375,0.4205,2378.2,2378.1,0.00631061]
[1725555769585,1.47176,2378.2,2378.1,0.00631061]
[1725555769776,1.47176,2378.2,2378.1,0.42683061]
[1725555769777,0.3856,2378.2,2378.1,0.42683061]
[1725555770183,0.42046,2378.5,2378.3,0.42048]
[1725555770379,0.80606,2378.5,2378.1,0.00631061]
[1725555770579,0.42047,2378.4,2378.3,0.42047]
[1725555770783,0.42047,2378.4,2378.2,0.42049]
[1725555770979,0.42048,2378.3,2378.1,0.42682061]
[1725555771282,0.42049,2378.3,2378.1,0.00631061]
[1725555771581,0.42048,2378.4,2378.3,0.42048]
[1725555773583,0.80606,2378.5,2378.4,0.42047]
[1725555773785,1.79713,2378.6,2378.1,1.05760061]
[1725555773786,0.746,2378.6,2378.1,1.05760061]
[1725555773985,0.42045,2378.5,2378.4,0.42045]
[1725555774183,1.16645,2378.6,2378.5,0.42045]
[1725555774782,0.42045,2378.5,2378.4,0.42045]
[1725555775187,0.42047,2378.4,2378.3,0.78207]
[1725555775795,0.3782,2378.5,2378.3,0.78207]
[1725555775796,0.79866,2378.5,2378.4,0.42047]
[1725555776502,0.42047,2378.4,2378.3,0.78208]
[1725555777796,0.42047,2378.4,2378.3,0.42048]
[1725555778593,0.3782,2378.5,2378.4,0.42047]
[1725555778995,0.79865,2378.5,2378.4,0.42047]
[1725555779700,0.42048,2378.4,2378.3,0.42047]
[1725555780003,0.42048,2378.4,2378.3,0.42048]
[1725555780389,0.42048,2378.4,2378.1,0.00631061]
[1725555780390,0.4205,2378.2,2378.1,0.00631061]
[1725555780596,1.47176,2378.2,2378.1,0.00631061]
[1725555780800,2.90902,2378.2,2378.1,0.00631061]
[1725555780992,0.42063,2377.5,2377.4,3.2078]
[1725555781198,1.05149,2377.7,2377.2,0.79256]
[1725555781398,0.42065,2377.4,2377.2,0.79256]
[1725555781596,0.3563,2377.6,2377.2,0.3719]
[1725555781907,0.78323061,2377.6,2377.4,0.42064]
[1725555782293,0.42063,2377.5,2377.2,0.37821061]
[1725555782495,0.42065,2377.4,2377.2,0.79888061]
[1725555782708,0.42064,2377.5,2377.2,0.79888061]
[1725555782997,0.42063,2377.5,2377.3,0.42066]
[1725555783499,0.42064,2377.5,2377.3,0.42066]
[1725555784199,0.3697,2377.4,2377.3,0.42066]
[1725555786901,0.3697,2377.4,2377.2,0.79888061]
[1725555787205,0.79035,2377.4,2377.2,0.42698061]
[1725555787609,0.79035,2377.4,2377.2,0.42699061]
[1725555787912,0.79035,2377.4,2377.2,0.42698061]
[1725555788107,0.79035,2377.4,2377.3,0.42066]
[1725555788310,0.3697,2377.4,2377.3,0.42066]
[1725555788507,0.79034,2377.4,2377.3,0.42066]
[1725555788907,0.3697,2377.4,2377.3,0.42066]
[1725555790113,0.78323061,2377.6,2377.5,0.42063]
[1725555790308,0.36261061,2377.6,2377.5,0.42063]
[1725555790612,0.00631061,2377.6,2377.5,0.42063]
[1725555791204,0.42692061,2377.6,2377.5,0.42063]
[1725555791908,0.42063,2377.5,2377.4,0.78604]
[1725555792110,0.80283,2377.5,2377.4,0.78604]
[1725555792613,0.80283,2377.5,2377.2,0.00631061]
[1725555792810,0.42066,2377.3,2377.2,0.00631061]
[1725555793002,4.68012,2377.3,2377.2,0.00631061]
[1725555793203,9.93818,2377.3,2377.2,0.00631061]
[1725555793399,0.42075,2376.8,2376.7,3.2078]
[1725555793611,0.42075,2376.8,2376.5,2.55]
[1725555793811,0.42076,2376.8,2376.5,2.55]
[1725555794006,0.3812,2376.9,2376.7,0.42076]
[1725555794804,0.80194,2376.9,2376.7,0.42076]
[1725555795007,0.3812,2376.9,2376.8,0.42075]
[1725555795206,0.3812,2376.9,2376.8,0.77815]
[1725555795415,0.80193,2376.9,2376.8,0.77815]
[1725555795912,0.80193,2376.9,2376.8,0.3574]
[1725555796108,0.3812,2376.9,2376.8,0.77815]
[1725555796314,0.80193,2376.9,2376.8,0.3574]
[1725555796613,0.3812,2376.9,2376.8,0.77815]
[1725555797005,0.80195,2376.9,2376.7,0.42076]
[1725555797210,0.42075,2376.8,2376.6,0.36361061]
[1725555798017,0.80194,2376.9,2376.6,0.78439061]
[1725555798814,0.42075,2376.8,2376.6,0.78439061]
[1725555799017,0.80194,2376.9,2376.6,0.78439061]
[1725555799522,0.80194,2376.9,2376.7,0.42077]
[1725555799817,0.80194,2376.9,2376.6,0.78438061]
[1725555800021,0.78202,2377.0,2376.6,0.36361061]
[1725555800218,0.78202,2377.0,2376.7,3.32985]
[1725555800717,0.3613,2377.0,2376.9,0.42073]
[1725555800923,0.78202,2377.0,2376.8,0.42074]
[1725555801225,0.42073,2376.9,2376.6,0.36361061]
[1725555801410,0.3613,2377.0,2376.6,0.36361061]
[1725555801411,0.42077,2376.7,2376.6,0.36361061]
[1725555801722,1.41311,2377.0,2376.6,0.36361061]
[1725555801723,0.3806,2376.8,2376.6,0.78440061]
[1725555801923,0.42077,2376.7,2376.6,0.00631061]
[1725555802219,0.42086,2376.2,2376.1,7.3538]
[1725555802520,0.42089,2376.0,2375.9,0.3928]
[1725555802724,0.3786,2376.1,2375.7,3.2078]
[1725555802920,0.42091,2375.9,2375.7,4.01334]
[1725555803519,0.00631061,2376.0,2375.9,0.42091]
[1725555803823,0.42721061,2376.0,2375.8,0.42092]
[1725555804016,0.42091,2375.9,2375.7,4.01334]
[1725555804609,0.00631061,2376.0,2375.7,3.5924]
[1725555804811,0.00631061,2376.0,2375.9,0.42091]
[1725555805513,0.38251061,2376.0,2375.9,0.42091]
[1725555805720,0.42092,2375.9,2375.7,6.56334]
[1725555805917,0.42092,2375.9,2375.7,6.56333]
[1725555806417,0.80341061,2376.0,2375.8,0.42093]
[1725555806613,0.80341061,2376.0,2375.7,6.56333]
[1725555807326,0.80341061,2376.0,2375.8,0.42093]
[1725555807715,0.38251061,2376.0,2375.9,0.42091]
[1725555808424,0.38251061,2376.0,2375.8,0.42091]
[1725555808721,0.42091,2375.9,2375.8,0.42091]
[1725555808916,0.80341061,2376.0,2375.9,0.42091]
[1725555809116,0.38251061,2376.0,2375.9,0.42091]
[1725555809316,0.00631061,2376.0,2375.9,8.23199]
[1725555809621,0.00631061,2376.0,2375.9,14.23199]
[1725555809924,0.00631061,2376.0,2375.9,7.17971]
[1725555810126,0.00631061,2376.0,2375.9,8.23199]
[1725555810316,0.00631061,2376.0,2375.9,8.59489]
[1725555810822,0.00631061,2376.0,2375.9,7.54261]
[1725555811016,0.00631061,2376.0,2375.9,2.97091]
[1725555811215,0.00631061,2376.0,2375.9,0.42091]
[1725555812219,0.42720061,2376.0,2375.9,0.42091]
[1725555812720,0.00631061,2376.0,2375.9,0.42091]
[1725555813226,0.42720061,2376.0,2375.9,0.42091]
[1725555813525,0.00631061,2376.0,2375.9,0.42091]
[1725555813716,0.42720061,2376.0,2375.9,0.42091]
[1725555813912,0.42092,2375.9,2375.8,0.42092]
[1725555814117,0.42093,2375.8,2375.7,3.5924]
[1725555814317,0.78273,2375.8,2375.7,3.5924]
[1725555814517,0.78273,2375.8,2375.7,4.01334]
[1725555814715,0.42093,2375.8,2375.7,4.01334]
[1725555815721,0.00631061,2376.0,2375.9,0.42091]
[1725555815924,0.00631061,2376.0,2375.9,1.47319]
[1725555816128,0.00631061,2376.0,2375.9,5.68199]
[1725555817235,0.00631061,2376.0,2375.9,4.62971]
[1725555817625,0.00631061,2376.0,2375.9,0.42091]
[1725555817928,0.42720061,2376.0,2375.9,0.42091]
[1725555818831,0.00631061,2376.0,2375.9,0.42091]
[1725555819219,0.42720061,2376.0,2375.9,0.42091]
[1725555819729,0.00631061,2376.0,2375.9,0.42091]
[1725555820125,0.42720061,2376.0,2375.9,0.42091]
[1725555820328,0.00631061,2376.0,2375.9,0.42091]
[1725555822434,0.00631061,2376.0,2375.9,5.68199]
[1725555822632,0.00631061,2376.0,2375.9,6.73427]
[1725555823928,0.00631061,2376.0,2375.9,1.47319]
[1725555825431,0.00631061,2376.0,2375.9,5.68199]
[1725555825635,0.00631061,2376.0,2375.9,6.73427]
[1725555826031,0.00631061,2376.0,2375.9,5.68199]
[1725555827333,0.00631061,2376.0,2375.9,0.42091]
[1725555827542,0.81380061,2376.0,2375.9,0.42091]
[1725555828333,0.39291061,2376.0,2375.9,0.42091]
[1725555828739,0.81380061,2376.0,2375.9,0.42091]
[1725555828936,0.39291061,2376.0,2375.9,0.42091]
[1725555829439,0.81380061,2376.0,2375.9,0.42091]
[1725555831027,0.42093,2375.9,2375.8,0.42092]
[1725555831234,0.42093,2375.8,2375.7,4.01334]
[1725555831435,0.42093,2375.8,2375.7,3.62874]
[1725555831637,1.47325,2375.8,2375.7,3.2078]
[1725555832234,0.42093,2375.8,2375.7,3.2078]
[1725555832535,4.62973,2375.8,2375.7,3.2078]
[1725555832738,4.62973,2375.8,2375.6,0.00631061]
[1725555832739,1.47331,2375.7,2375.6,0.00631061]
[1725555832933,0.42102,2375.3,2375.2,7.3538]
[1725555833130,0.42102,2375.3,2375.2,4.146]
[1725555833531,0.42102,2375.3,2375.2,4.56703]
[1725555833730,1.199,2375.4,2375.2,4.56703]
[1725555834737,0.42102,2375.3,2375.2,4.56703]
[1725555835137,0.42102,2375.3,2375.2,4.146]
[1725555835734,4.63142,2375.3,2375.2,4.146]
[1725555836738,0.42103,2375.2,2375.1,3.21411061]
[1725555837143,4.2104,2375.3,2375.1,3.63516061]
[1725555837144,0.42103,2375.3,2375.1,3.63516061]
[1725555837342,0.42103,2375.2,2375.1,3.21411061]
[1725555838133,0.42103,2375.2,2375.1,3.63516061]
[1725555838447,0.42102,2375.3,2375.1,3.63516061]
[1725555838743,0.42103,2375.2,2375.1,3.63516061]
[1725555839049,0.42103,2375.3,2375.1,3.63516061]
[1725555840140,0.42103,2375.2,2375.1,3.63516061]
[1725555840342,0.42103,2375.2,2375.1,3.21411061]
[1725555840652,4.63143,2375.2,2375.1,3.21411061]
[1725555840837,5.68402,2375.2,2375.1,0.00631061]
[1725555841155,12.07522,2375.2,2375.1,0.00631061]
[1725555841946,6.07522,2375.2,2375.1,0.00631061]
[1725555842846,12.07522,2375.2,2375.1,0.00631061]
[1725555843555,13.12781,2375.2,2375.1,0.00631061]
[1725555843846,13.12781,2375.2,2374.8,3.2078]
[1725555843847,1.47381,2374.9,2374.8,3.2078]
[1725555844052,0.42112,2374.7,2374.6,4.146]
[1725555844237,1.05281,2374.7,2374.3,0.42119]
[1725555844445,1.05281,2374.7,2374.4,0.42116]
[1725555844446,0.42116,2374.5,2374.4,0.42116]
[1725555845243,0.42118,2374.4,2374.3,0.42118]
[1725555845643,0.42119,2374.3,2374.2,0.00631061]
[1725555845839,3.35989,2374.3,2374.2,0.00631061]
[1725555846040,7.57189,2374.3,2374.2,0.00631061]
[1725555846442,0.79685,2374.6,2374.2,0.00631061]
[1725555846649,0.42114,2374.6,2374.5,0.42115]
[1725555846840,0.00631061,2374.7,2374.3,3.2078]
[1725555846841,0.42117,2374.5,2374.3,3.2078]
[1725555847047,0.42117,2374.5,2374.3,3.62898]
[1725555847242,0.3887,2374.4,2374.3,3.62898]
[1725555847653,1.21055061,2374.7,2374.3,3.2078]
[1725555847947,0.42115,2374.6,2374.3,3.5879]
[1725555848149,0.78515,2374.6,2374.5,0.42115]
[1725555848449,0.364,2374.6,2374.3,3.2078]
[1725555848951,0.364,2374.6,2374.5,0.42116]
[1725555849163,0.78514,2374.6,2374.4,0.42116]
[1725555849350,0.78514,2374.6,2374.3,3.5805]
[1725555849351,0.364,2374.6,2374.5,0.42116]
[1725555849652,0.78514,2374.6,2374.5,0.42116]
[1725555849842,0.364,2374.6,2374.5,0.42116]
[1725555850153,0.00631061,2374.7,2374.6,0.42114]
[1725555850455,0.212,2375.3,2374.9,1.05272]
[1725555850650,0.212,2375.3,2375.0,3.5899]
[1725555850651,0.42102,2375.3,2375.0,3.5899]
[1725555850946,0.42102,2375.3,2375.1,0.42105]
[1725555851151,0.42103,2375.2,2375.0,4.01096]
[1725555851347,0.42104,2375.2,2375.0,4.01096]
[1725555851548,0.42103,2375.2,2375.0,4.01096]
[1725555851748,2.97734061,2375.3,2375.1,0.42104]
[1725555852445,2.55631061,2375.3,2375.2,0.42103]
[1725555852650,0.00631061,2375.3,2375.2,0.42103]
[1725555855271,0.00631061,2375.3,2375.1,0.79664]
[1725555855567,0.42733061,2375.3,2375.1,0.79664]
[1725555855772,0.00631061,2375.3,2375.2,0.42103]
[1725555856159,0.00631061,2375.3,2375.1,0.3756]
[1725555856469,0.42105,2375.2,2375.0,4.01097]
[1725555856771,2.97105,2375.1,2374.8,0.3893]
[1725555856978,2.97105,2375.1,2374.7,3.2078]
[1725555856979,0.4211,2374.8,2374.7,3.2078]
[1725555857180,0.42112,2374.7,2374.6,0.3618]
[1725555857471,0.42116,2374.5,2374.4,3.2078]
[1725555857871,0.42118,2374.4,2374.3,0.385]
[1725555858177,0.42118,2374.4,2374.2,0.00631061]
[1725555858178,0.42119,2374.3,2374.2,0.00631061]
[1725555858374,4.63319,2374.3,2374.2,0.00631061]
[1725555858565,10.63319,2374.3,2374.2,0.00631061]
[1725555859173,4.63319,2374.3,2374.2,0.00631061]
[1725555860472,4.212,2374.3,2374.2,0.00631061]
[1725555860771,0.42117,2374.5,2374.2,0.00631061]
[1725555861270,0.42117,2374.5,2374.2,0.42752061]
[1725555861771,0.42116,2374.5,2374.3,0.3935]
[1725555862072,0.42117,2374.5,2374.3,0.3935]
[1725555862777,3.31,2374.6,2374.3,0.3935]
[1725555862971,3.31,2374.6,2374.4,0.42117]
[1725555863275,3.31,2374.6,2374.3,0.3935]
[1725555863468,2.55,2374.4,2374.3,0.3935]
[1725555865069,2.97118,2374.4,2374.3,0.3935]
[1725555865271,0.42119,2374.3,2374.2,0.00631061]
[1725555865464,2.97119,2374.4,2374.2,0.00631061]
[1725555865664,0.42119,2374.3,2374.2,0.00631061]
[1725555866075,0.3877,2374.6,2374.5,0.42116]
[1725555866375,2.55,2374.8,2374.7,0.42112]
[1725555866876,0.42112,2374.7,2374.6,0.42113]
[1725555867073,2.97112,2374.8,2374.6,0.42113]
[1725555867273,0.3869,2374.9,2374.7,0.42112]
[1725555867473,0.80799,2374.9,2374.8,0.3792]
[1725555867672,5.7578,2375.1,2374.8,0.3792]
[1725555867673,0.42107,2375.0,2374.8,0.80029]
[1725555868674,2.55,2374.9,2374.6,3.62893]
[1725555868874,0.42111,2374.8,2374.7,0.3792]
[1725555869065,2.9711,2374.9,2374.7,0.80032]
[1725555869468,0.4211,2374.8,2374.7,0.3792]
[1725555869777,2.9711,2374.9,2374.7,0.80032]
[1725555870177,0.4211,2374.8,2374.7,0.3792]
[1725555870477,0.4211,2374.8,2374.6,3.62893]
[1725555870666,0.4211,2374.8,2374.6,4.01983]
[1725555870871,2.55,2374.9,2374.6,3.5987]
[1725555870872,0.42112,2374.7,2374.6,3.5987]
[1725555871474,6.7612,2374.7,2374.3,3.2078]
[1725555871674,0.42116,2374.5,2374.3,3.62898]
[1725555871877,2.97118,2374.4,2374.3,3.2078]
[1725555872070,0.42119,2374.3,2374.2,0.00631061]
[1725555872477,3.34809,2374.4,2374.2,0.42752061]
[1725555872682,0.42119,2374.3,2374.2,0.00631061]
[1725555873882,4.63319,2374.3,2374.2,0.00631061]
[1725555874480,4.63319,2374.3,2374.2,0.42752061]
[1725555874678,3.34808,2374.4,2374.2,0.42752061]
[1725555874883,0.42119,2374.3,2374.2,0.00631061]
[1725555875082,3.34809,2374.4,2374.2,0.42751061]
[1725555875679,0.42119,2374.3,2374.2,0.42751061]
[1725555876481,2.9269,2374.4,2374.2,0.42751061]
[1725555876981,3.34809,2374.4,2374.2,0.00631061]
[1725555877175,3.34809,2374.4,2374.2,0.42751061]
[1725555877383,3.34809,2374.4,2374.3,0.3694]
[1725555878287,0.42119,2374.3,2374.2,0.00631061]
[1725555878984,0.42119,2374.3,2374.2,0.42752061]
[1725555879783,3.34808,2374.4,2374.3,0.42119]
[1725555880177,3.34808,2374.4,2374.3,0.78069]
[1725555880585,3.34808,2374.4,2374.3,0.3595]
[1725555880783,0.3711,2374.6,2374.3,0.78069]
[1725555880989,0.212,2375.0,2374.9,0.42109]
[1725555881284,0.77914,2375.2,2374.7,4.26059]
[1725555881489,0.77914,2375.2,2374.7,5.36469]
[1725555881886,0.3581,2375.2,2375.1,0.42105]
[1725555882087,0.00631061,2375.3,2375.2,0.42103]
[1725555882280,2.84465369,2375.8,2375.2,10.2104]
[1725555882281,2.9081,2375.8,2375.2,10.2104]
[1725555882480,0.3581,2375.8,2375.7,0.42094]
[1725555882681,2.55,2376.0,2375.5,3.2078]
[1725555882884,2.97089,2376.0,2375.7,0.42094]
[1725555883996,2.97089,2376.0,2375.6,0.80116061]
[1725555884192,2.55,2376.0,2375.6,0.80116061]
[1725555884489,2.55,2375.8,2375.6,0.80116061]
[1725555885292,2.97094,2375.8,2375.6,0.38021061]
[1725555885595,2.97094,2375.8,2375.6,0.00631061]
[1725555885596,0.42094,2375.7,2375.6,0.00631061]
[1725555885793,0.3776,2375.7,2375.6,0.00631061]
[1725555885991,0.79854,2375.7,2375.6,0.00631061]
[1725555886295,0.3776,2375.7,2375.6,0.00631061]
[1725555886483,2.55,2375.8,2375.6,0.00631061]
[1725555886683,2.55,2375.8,2375.6,0.39751061]
[1725555886889,2.55,2376.0,2375.6,4.60711061]
[1725555887095,2.55,2376.0,2375.8,0.42093]
[1725555888296,2.97089,2376.0,2375.7,0.42093]
[1725555889088,2.55,2375.8,2375.6,0.00631061]
[1725555889289,0.81524,2375.7,2375.6,0.00631061]
[1725555890897,0.3943,2375.7,2375.6,0.00631061]
[1725555891098,0.3943,2375.7,2375.6,0.42727061]
[1725555891595,0.81524,2375.7,2375.6,0.00631061]
[1725555892395,6.43501,2375.7,2375.6,0.00631061]
[1725555892598,0.42103,2375.2,2375.1,3.2078]
[1725555892800,0.42103,2375.2,2375.1,3.62885]
[1725555892996,0.42102,2375.3,2375.1,3.62885]
[1725555894804,0.80442,2375.3,2375.2,0.42103]
[1725555895188,0.80442,2375.3,2375.1,0.42105]
[1725555895392,0.42103,2375.2,2375.1,0.42105]
[1725555895689,0.80443,2375.3,2375.1,0.42105]
[1725555895997,1.16843,2375.3,2375.1,0.42105]
[1725555896590,0.42103,2375.2,2375.1,0.42105]
[1725555897202,1.16843,2375.3,2375.1,0.42105]
[1725555897409,1.16843,2375.3,2375.2,0.42103]
[1725555897897,0.7474,2375.3,2375.1,0.42104]
[1725555898097,0.42103,2375.2,2375.1,0.42104]
[1725555898402,1.16843,2375.3,2375.1,0.42104]
[1725555898793,1.16843,2375.3,2375.2,0.42103]
[1725555899300,2.55,2375.6,2375.4,0.42099]
[1725555899501,2.9058,2375.6,2375.4,0.421]
[1725555899710,3.32678,2375.6,2375.5,0.42098]
[1725555900396,0.42102,2375.3,2375.2,3.62883]
[1725555900797,0.42102,2375.3,2375.2,3.2078]
[1725555900996,0.42102,2375.3,2375.0,0.00631061]
[1725555900997,0.42105,2375.1,2375.0,0.00631061]
[1725555901194,0.42105,2375.1,2375.0,0.42738061]
[1725555901195,2.55,2375.1,2375.0,0.42738061]
[1725555901395,0.42105,2375.2,2375.1,0.42105]
[1725555901798,0.3856,2375.3,2375.2,0.42103]
[1725555902100,0.421,2375.4,2375.3,0.42102]
[1725555902404,0.42101,2375.4,2375.3,0.42101]
[1725555902906,2.55,2375.5,2375.4,0.421]
[1725555902907,2.97099,2375.5,2375.4,0.421]
[1725555903206,0.421,2375.4,2375.3,0.421]
[1725555903705,0.42102,2375.3,2375.2,4.00293]
[1725555903900,3.33532,2375.3,2375.2,3.62883]
[1725555905404,3.33532,2375.3,2375.2,3.2078]
[1725555905598,3.33532,2375.3,2375.2,3.62883]
[1725555905798,7.1247,2375.3,2375.0,0.00631061]
[1725555906105,4.02368,2375.1,2375.0,0.00631061]
[1725555906606,8.61978,2375.1,2375.0,0.00631061]
[1725555907403,7.56715,2375.1,2375.0,0.42738061]
[1725555907700,0.3857,2375.1,2375.0,0.42738061]
[1725555908606,0.80675,2375.1,2375.0,0.42738061]
[1725555908803,0.3857,2375.1,2375.0,0.42738061]
[1725555910301,0.3857,2375.1,2375.0,0.00631061]
[1725555910510,2.55,2375.5,2375.0,11.26937061]
[1725555910806,0.3779,2375.5,2375.4,0.421]
[1725555911000,2.97096,2375.7,2375.5,0.42097]
[1725555911001,2.55,2375.7,2375.5,0.42097]
[1725555911202,2.97095,2375.7,2375.4,0.42099]
[1725555911509,0.42096,2375.6,2375.3,0.421]
[1725555912205,0.42096,2375.6,2375.3,0.801]
[1725555912501,0.42096,2375.6,2375.4,0.42099]
[1725555912701,2.97096,2375.7,2375.4,0.42099]
[1725555913296,2.97096,2375.7,2375.2,3.2078]
[1725555913297,2.55,2375.5,2375.0,0.00631061]
[1725555913607,2.55,2375.5,2374.5,3.2078]
[1725555913608,2.55,2375.3,2374.5,3.2078]
[1725555913907,2.55,2375.1,2374.7,0.42111]
[1725555914096,2.97106,2375.1,2374.7,0.42111]
[1725555914297,5.7578,2375.1,2374.8,0.4211]
[1725555914495,2.55,2375.1,2374.8,0.4211]
[1725555914706,0.42104,2375.2,2374.9,0.7687]
[1725555914908,2.55,2375.1,2374.9,0.7687]
[1725555915803,6.17885,2375.1,2374.9,0.7687]
[1725555916202,5.7578,2375.1,2374.9,0.7687]
[1725555916407,2.55,2375.1,2374.9,0.7687]
[1725555917411,2.55,2375.1,2374.9,1.18979]
[1725555917710,2.55,2375.1,2374.9,0.7687]
[1725555918209,2.97105,2375.1,2374.9,0.7687]
[1725555918913,6.17886,2375.1,2374.9,0.7687]
[1725555919109,2.55,2375.1,2374.7,0.00631061]
[1725555919309,2.55,2374.8,2374.7,0.00631061]
[1725555920212,7.1823,2374.8,2374.7,0.00631061]
[1725555920506,7.1823,2374.8,2374.2,0.3879]
[1725555920507,0.42119,2374.4,2374.2,0.3879]
[1725555920712,5.7578,2374.3,2374.2,0.3879]
[1725555921010,6.96227023,2374.8,2374.2,0.3879]
[1725555921011,2.97116,2374.5,2374.2,0.8091]
[1725555921204,2.97116,2374.5,2374.2,0.3879]
[1725555921205,0.42118,2374.4,2374.2,0.3879]
[1725555921713,2.97119,2374.3,2374.2,0.3879]
[1725555921912,2.55,2374.3,2374.2,0.3879]
[1725555922315,5.7578,2374.3,2374.2,0.3879]
[1725555922515,6.17899,2374.3,2374.2,0.3879]
[1725555922712,6.179,2374.3,2374.1,0.00420706]
[1725555922907,2.55,2374.3,2374.1,0.00420706]
[1725555923420,2.97119,2374.3,2374.1,0.00420706]
[1725555924318,0.42121,2374.2,2374.1,0.00420706]
[1725555925613,0.80611,2374.2,2374.1,0.00420706]
[1725555926912,0.3799,2374.4,2374.1,4.21620706]
[1725555927214,0.00631061,2374.5,2374.4,0.42118]
[1725555927618,0.00631061,2374.5,2374.4,4.63238]
[1725555928413,2.55631061,2374.5,2374.2,1.129]
[1725555928620,0.42118,2374.4,2374.2,1.1786]
[1725555929019,2.97748061,2374.5,2374.3,0.42119]
[1725555929520,0.42118,2374.4,2374.2,1.1786]
[1725555929911,2.97119,2374.3,2374.2,0.3779]
[1725555930109,2.97119,2374.3,2374.1,0.00420706]
[1725555930110,0.42121,2374.2,2374.1,0.00420706]
[1725555930310,0.79911,2374.2,2374.1,0.00420706]
[1725555931018,1.85214,2374.2,2374.1,0.00420706]
[1725555931212,0.79911,2374.2,2374.1,0.00420706]
[1725555933220,0.42128,2373.8,2373.7,4.146]
[1725555933416,5.7578,2373.8,2373.2,0.3655]
[1725555933617,2.55,2373.5,2373.4,0.42135]
[1725555934218,2.55,2373.5,2373.2,0.3655]
[1725555934520,2.55,2373.5,2373.3,0.42135]
[1725555935220,2.97134,2373.5,2373.3,0.42135]
[1725555936020,2.55,2373.5,2373.2,0.3655]
[1725555936220,2.55,2373.5,2373.4,0.42135]
[1725555936623,2.9065,2373.7,2373.6,0.42132]
[1725555937124,2.9065,2373.7,2373.5,0.42132]
[1725555937125,3.3278,2373.7,2373.5,0.42132]
[1725555937327,0.42133,2373.6,2373.4,0.42134]
[1725555937525,3.32781,2373.7,2373.5,0.42133]
[1725555938328,0.42132,2373.6,2373.5,0.42133]
[1725555938518,3.32781,2373.7,2373.5,0.42133]
[1725555940224,2.9065,2373.7,2373.5,0.42133]
[1725555940724,3.3278,2373.7,2373.5,0.42133]
[1725555941527,0.42132,2373.6,2373.4,0.42134]